bitfinex-derivatives/quotes_SOLF0:USTF0_20260215
["timestamp","ask_amount","ask_price","bid_price","bid_amount"]
[1771121862333,1.07897264,88.209,88.152,8.04630938]
[1771121862832,158.6765,88.279,88.152,8.04630938]
[1771121862833,1.07897264,88.199,88.152,8.04630938]
[1771121864226,1.09794102,88.189,88.139,7.930089]
[1771121868726,10.2111,88.188,88.139,7.930089]
[1771121869131,0.94509795,88.187,88.139,7.930089]
[1771121869333,0.95357175,88.186,88.139,7.930089]
[1771121869532,0.95357175,88.182,88.139,7.930089]
[1771121870140,10.2118,88.181,88.139,7.930089]
[1771121870840,10.2126,88.175,88.139,7.930089]
[1771121872937,0.97319711,88.174,88.123,8.01471358]
[1771121873148,0.97319711,88.169,88.123,8.01471358]
[1771121874040,0.97319711,88.169,88.102,10.2209]
[1771121874041,0.98117353,88.158,88.1,2.39934494]
[1771121874237,0.98117353,88.158,88.101,8.01486527]
[1771121875144,0.98117353,88.158,88.11,2.39934494]
[1771121875342,10.2134,88.168,88.111,8.01834909]
[1771121876037,103.2,88.175,88.121,8.01834909]
[1771121878334,10.2128,88.173,88.121,8.01834909]
[1771121879146,1.0528204,88.172,88.121,8.01834909]
[1771121879741,1.06037731,88.167,88.121,8.01834909]
[1771121879943,1.06037731,88.167,88.107,7.99927787]
[1771121880147,1.06037731,88.227,88.161,7.99927787]
[1771121880348,1.06037731,88.227,88.181,7.99927787]
[1771121881141,1.08052131,88.209,88.154,7.99298675]
[1771121881347,1.08789322,88.207,88.143,7.99298675]
[1771121881541,1.08789322,88.207,88.146,7.99311631]
[1771121881739,1.08789322,88.207,88.161,7.99311631]
[1771121883342,1.24763062,88.225,88.171,7.930089]
[1771121883542,1.24763062,88.244,88.19,10.32943394]
[1771121883845,1.24763062,88.242,88.191,7.930089]
[1771121888352,1.24763062,88.242,88.164,13.96887377]
[1771121888353,0.81283789,88.266,88.21,2.39934494]
[1771121888550,290.89283789,88.265,88.211,8.15568216]
[1771121888748,0.81283789,88.265,88.214,8.15568216]
[1771121888944,319.63283789,88.265,88.221,8.15568216]
[1771121889150,0.81283789,88.264,88.21,2.39934494]
[1771121889352,0.81283789,88.264,88.21,10.55520593]
[1771121889552,0.81283789,88.264,88.212,8.15586099]
[1771121891556,320.65461028,88.263,88.212,8.15586099]
[1771121893855,319.82,88.263,88.212,8.15586099]
[1771121894957,319.82,88.263,88.221,8.20313884]
[1771121895556,0.75767606,88.262,88.221,8.20313884]
[1771121895753,0.75767606,88.262,88.21,2.39934494]
[1771121895953,0.75767606,88.262,88.21,10.60266899]
[1771121896153,0.75767606,88.262,88.211,8.20332405]
[1771121898456,2.39934494,88.26,88.211,8.20332405]
[1771121898659,1.25078023,88.259,88.2,2.39934494]
[1771121898856,1.25078023,88.249,88.198,18.20935939]
[1771121899060,1.25078023,88.249,88.199,7.99955939]
[1771121899254,319.82,88.263,88.201,7.99955939]
[1771121899255,1.25078023,88.262,88.201,7.99955939]
[1771121899461,3.65603631,88.28,88.211,7.99955939]
[1771121899762,258.3,88.279,88.221,7.99955939]
[1771121900061,259.55669137,88.279,88.221,7.99955939]
[1771121900250,1.25669137,88.278,88.221,7.99955939]
[1771121900655,1.30842182,88.259,88.211,10.2083]
[1771121901056,1.30842182,88.259,88.212,7.99955939]
[1771121901651,2.39934494,88.25,88.212,7.99955939]
[1771121901856,323.2,88.249,88.212,7.99955939]
[1771121907965,326.9227842,88.248,88.198,18.23617062]
[1771121908158,1.1827842,88.246,88.198,18.23617062]
[1771121908359,1.17397399,88.239,88.198,8.02637062]
[1771121908558,1.17397399,88.237,88.189,10.2108]
[1771121909164,1.17397399,88.237,88.189,18.24431482]
[1771121909365,1.17397399,88.237,88.192,10.2105]
[1771121911167,1.32665047,88.229,88.19,8.03351482]
[1771121911366,1.33188048,88.219,88.161,7.99955939]
[1771121911567,1.33188048,88.217,88.161,7.99955939]
[1771121912273,1.33188048,88.209,88.161,7.99955939]
[1771121912472,1.31083765,88.207,88.161,7.99955939]
[1771121913768,1.31083765,88.207,88.169,10.2132]
[1771121913964,1.31083765,88.207,88.169,18.21275939]
[1771121914371,1.31083765,88.207,88.169,10.2132]
[1771121914571,1.31083765,88.207,88.157,10.2146]
[1771121914974,1.40763992,88.199,88.156,7.99955939]
[1771121915173,151.58763992,88.198,88.156,7.99955939]
[1771121915370,1.41267876,88.189,88.142,7.99955939]
[1771121916777,90.48,88.188,88.142,7.99955939]
[1771121918078,1.41267876,88.189,88.142,7.99955939]
[1771121918277,90.48,88.188,88.142,7.99955939]
[1771121919180,91.94442069,88.188,88.142,7.99955939]
[1771121920477,1.47811591,88.187,88.143,10.2162]
[1771121921181,1.47811591,88.187,88.147,8.07911644]
[1771121921386,103.52,88.191,88.147,8.07911644]
[1771121922385,112.3,88.196,88.147,8.07911644]
[1771121922680,2.39855212,88.21,88.122,13.96887377]
[1771121922681,2.39855212,88.21,88.161,8.07911644]
[1771121922886,90.48,88.209,88.161,8.07911644]
[1771121923381,3.81933198,88.21,88.161,8.07911644]
[1771121923586,91.90077986,88.209,88.164,10.2138]
[1771121924182,1.42077986,88.208,88.161,8.07911644]
[1771121924388,3.82386857,88.2,88.161,8.07911644]
[1771121924589,119.28,88.199,88.161,8.07911644]
[1771121924785,120.70778752,88.199,88.161,8.07911644]
[1771121924984,3.82633964,88.19,88.154,10.2149]
[1771121926791,3.964e-05,88.19,88.163,10.2138]
[1771121927092,119.28,88.199,88.163,10.2138]
[1771121927285,2.39855212,88.2,88.163,10.2138]
[1771121928793,2.39855212,88.2,88.147,7.95530712]
[1771121930097,0.04396724,88.207,88.152,8.65703477]
[1771121930998,0.04396724,88.207,88.153,10.2151]
[1771121931297,0.05695932,88.206,88.154,8.65817955]
[1771121931597,199.81695932,88.205,88.154,8.65817955]
[1771121931896,0.05695932,88.199,88.154,8.65817955]
[1771121937502,10.26685932,88.199,88.154,8.65817955]
[1771121940599,10.21,88.197,88.154,8.65817955]
[1771121941605,0.05695932,88.199,88.154,8.65817955]
[1771121942005,2.39855212,88.18,88.134,8.73283333]
[1771121942399,92.89855212,88.18,88.134,8.73283333]
[1771121942903,2.39855212,88.2,88.134,8.73283333]
[1771121943105,117.82,88.199,88.134,8.73283333]
[1771121943801,117.82,88.199,88.141,8.74765521]
[1771121944303,0.02819932,88.205,88.144,8.74765521]
[1771121945804,0.02819932,88.205,88.149,8.70361903]
[1771121947209,2.39855212,88.2,88.149,8.70361903]
[1771121947805,240.24,88.199,88.149,8.70361903]
[1771121948709,2.39855212,88.19,88.149,8.70361903]
[1771121950218,240.24,88.199,88.149,8.70361903]
[1771121950709,10.21,88.197,88.149,8.70361903]
[1771121952108,2.39855212,88.19,88.149,8.70361903]
[1771121954617,276.32,88.194,88.149,8.70361903]
[1771121955211,10.2105,88.193,88.149,8.70361903]
[1771121955411,322.6905,88.193,88.149,8.70361903]
[1771121956609,2.39855212,88.19,88.149,8.70361903]
[1771121958116,10.2112,88.187,88.137,8.84123633]
[1771121958520,2.39855212,88.18,88.131,13.96887377]
[1771121958708,2.39855212,88.18,88.129,13.96887377]
[1771121959115,2.39855212,88.18,88.13,8.83960574]
[1771121959823,10.2122,88.179,88.13,8.83960574]
[1771121960419,10.2126,88.175,88.13,8.83960574]
[1771121960619,0.16264387,88.174,88.121,13.96887377]
[1771121960925,2.56119599,88.16,88.117,8.67252628]
[1771121961110,0.16264387,88.16,88.117,8.67252628]
[1771121966419,2.39855212,88.15,88.108,13.96887377]
[1771121966619,0.07614063,88.149,88.106,8.7263916]
[1771121966823,2.39855212,88.15,88.106,8.7263916]
[1771121966824,0.07614063,88.146,88.106,8.7263916]
[1771121967716,10.2162,88.144,88.106,8.7263916]
[1771121968626,10.2171,88.136,88.106,8.7263916]
[1771121970129,10.2158,88.147,88.111,8.7517793]
[1771121972035,303.96,88.153,88.111,8.7517793]
[1771121983540,10.2138,88.165,88.111,8.7517793]
[1771121983836,340.22,88.164,88.111,8.7517793]
[1771121984730,10.214,88.163,88.111,8.7517793]
[1771121987342,341.88,88.162,88.111,8.7517793]
[1771121987538,10.2144,88.159,88.111,8.7517793]
[1771121989443,10.2154,88.151,88.111,8.7517793]
[1771121992642,10.2159,88.147,88.097,13.96887377]
[1771121992843,246.3,88.146,88.096,8.90257352]
[1771121993743,10.2181,88.128,88.096,8.90257352]
[1771121994145,10.2181,88.128,88.081,8.90264067]
[1771121995446,154.98,88.127,88.081,8.90264067]
[1771121997442,10.2186,88.123,88.081,8.90264067]
[1771121997652,2.40451383,88.12,88.073,7.377e-05]
[1771121997840,20.4314,88.149,88.043,27.95286451]
[1771121997841,2.40451383,88.1,88.05,8.90936243]
[1771121998045,2.40451383,88.08,88.028,240.06535253]
[1771121998249,7.99167087,88.078,88.02,2.40451383]
[1771121999146,7.99167087,88.074,88.02,2.40451383]
[1771121999553,10.2247,88.07,88.03,2.40451383]
[1771121999948,10.2247,88.07,88.031,8.18126363]
[1771122000351,187.12,88.094,88.041,8.18126363]
[1771122000552,2.40451383,88.08,88.02,2.40451383]
[1771122000742,7.99167087,88.079,88.02,2.40451383]
[1771122000949,18.21617087,88.072,88.02,2.40451383]
[1771122001150,7.99167087,88.071,88.02,2.40451383]
[1771122001642,2.40451383,88.08,88.02,2.40451383]
[1771122001952,7.99167087,88.089,88.04,2.40451383]
[1771122002452,7.99167087,88.086,88.04,2.40451383]
[1771122002754,7.99167087,88.086,88.041,8.18126363]
[1771122002950,2.40451383,88.1,88.041,8.18126363]
[1771122003149,2.40451383,88.08,88.041,8.18126363]
[1771122003454,7.99167087,88.079,88.021,8.18126363]
[1771122005056,7.99167087,88.079,88.031,8.18126363]
[1771122005255,7.99167087,88.094,88.041,8.18126363]
[1771122005851,7.99167087,88.089,88.041,8.18126363]
[1771122014666,8.05728398,88.079,88.029,8.23268539]
[1771122016359,10.2239,88.078,88.029,8.23268539]
[1771122016561,8.05728398,88.077,88.029,8.23268539]
[1771122017762,8.05728398,88.073,88.029,8.23268539]
[1771122018566,8.05728398,88.071,88.029,8.23268539]
[1771122022258,8.05728398,88.071,88.018,18.46348539]
[1771122022463,8.05728398,88.069,88.018,8.23268539]
[1771122022663,8.05728398,88.067,88.018,8.23268539]
[1771122025366,8.05728398,88.059,88.006,8.23268539]
[1771122026765,8.05728398,88.057,88.006,8.23268539]
[1771122027569,8.05728398,88.057,88.008,10.2318]
[1771122030159,8.05728398,88.057,87.964,20.96843962]
[1771122030160,8.05728398,88.054,87.997,10.2331]
[1771122030360,8.05728398,88.049,87.972,8.23268539]
[1771122030568,8.05728398,88.029,87.972,8.23268539]
[1771122030767,8.05728398,88.041,87.99,2.40945557]
[1771122030967,102.78,88.04,87.991,8.23268539]
[1771122031172,8.05728398,88.059,88.001,8.23268539]
[1771122031373,8.05728398,88.05,88.001,8.23268539]
[1771122031665,8.05728398,88.05,87.99,2.40945557]
[1771122031870,2.40945557,88.04,87.989,8.23268539]
[1771122032074,8.05728398,88.038,87.989,8.23268539]
[1771122032266,8.05728398,88.036,87.989,8.23268539]
[1771122033466,8.05728398,88.036,87.98,2.40945557]
[1771122033772,8.05728398,88.036,87.981,8.23268539]
[1771122034365,8.05728398,88.034,87.981,8.23268539]
[1771122035765,8.05728398,88.032,87.981,8.23268539]
[1771122036465,8.05728398,88.03,87.981,8.23268539]
[1771122037168,8.05728398,88.019,87.981,8.23268539]
[1771122037667,8.05728398,88.019,87.961,8.23268539]
[1771122037870,602.09566728,88.069,87.961,8.23268539]
[1771122037871,8.05728398,88.009,87.961,8.23268539]
[1771122038672,8.05728398,87.999,87.94,2.40945557]
[1771122038874,8.05728398,87.998,87.94,2.40945557]
[1771122039570,8.05728398,87.986,87.924,466.41900432]
[1771122039774,20.4584,88.032,87.9,16.62184858]
[1771122039775,8.05728398,87.979,87.92,2.40945557]
[1771122040575,8.05728398,87.979,87.921,8.23268539]
[1771122040876,8.52577814,87.993,87.941,8.59013504]
[1771122041671,159.0885,88.05,87.9,16.62184858]
[1771122041672,8.52577814,88.009,87.951,8.59013504]
[1771122041880,20.4518,88.061,87.9,16.62184858]
[1771122041881,90.54,88.018,87.971,8.59013504]
[1771122042068,8.52577814,88.017,87.971,8.59013504]
[1771122043479,10.232,88.007,87.971,8.59013504]
[1771122044477,2.40945557,87.98,87.929,8.4915952]
[1771122044677,8.49832363,87.969,87.929,8.4915952]
[1771122045882,10.2368,87.967,87.929,8.4915952]
[1771122046279,10.2368,87.967,87.91,2.40945557]
[1771122046479,10.2368,87.967,87.911,8.4915952]
[1771122046679,10.2368,87.967,87.92,2.40945557]
[1771122046880,10.2368,87.967,87.92,10.90105077]
[1771122047182,10.2368,87.967,87.921,8.4915952]
[1771122051088,10.2376,87.959,87.921,8.4915952]
[1771122051489,8.49832363,87.966,87.921,8.4915952]
[1771122057290,109.56,87.977,87.921,8.4915952]
[1771122057691,118.05832363,87.977,87.921,8.4915952]
[1771122058085,8.49832363,87.976,87.921,8.4915952]
[1771122058689,8.49832363,87.969,87.921,8.4915952]
[1771122059587,8.49832363,87.969,87.922,8.4915952]
[1771122060790,8.49832363,87.969,87.924,8.4915952]
[1771122062388,8.49832363,87.969,87.923,10.2417]
[1771122062389,8.49832363,87.969,87.926,8.4915952]
[1771122062989,8.49832363,87.969,87.928,18.7327952]
[1771122064995,8.49832363,87.969,87.931,10.2408]
[1771122066098,8.49832363,87.969,87.923,10.2418]
[1771122066502,8.49832363,87.959,87.904,8.4915952]
[1771122067194,8.49832363,87.959,87.906,8.4915952]
[1771122068804,8.49832363,87.959,87.911,8.4915952]
[1771122071311,2.40945557,87.97,87.921,8.4915952]
[1771122071312,126.2,87.97,87.921,8.4915952]
[1771122071613,8.49832363,87.969,87.921,8.4915952]
[1771122072713,8.49832363,87.967,87.921,8.4915952]
[1771122077517,176.38,87.975,87.923,9.03803382]
[1771122078011,8.67110231,87.969,87.911,9.03803382]
[1771122078917,8.67110231,87.959,87.911,9.03803382]
[1771122082113,10.2378,87.958,87.911,9.03803382]
[1771122082319,8.67110231,87.957,87.911,9.03803382]
[1771122084018,8.67110231,87.957,87.913,9.03803382]
[1771122087022,10.2368,87.967,87.921,9.03803382]
[1771122087422,8.67110231,87.969,87.921,9.03803382]
[1771122087624,159.0981,88.045,87.921,9.03803382]
[1771122087625,8.67110231,88.005,87.951,9.03803382]
[1771122088119,8.67110231,88.004,87.951,9.03803382]
[1771122088423,8.67110231,88.004,87.954,9.03803382]
[1771122088820,8.67110231,88.004,87.961,9.03803382]
[1771122089020,8.67110231,88.018,87.961,9.03803382]
[1771122091229,8.67110231,88.016,87.961,9.03803382]
[1771122092028,8.67110231,88.014,87.961,9.03803382]
[1771122093723,8.67110231,88.014,87.96,2.4115197]
[1771122093724,8.67110231,88.014,87.963,9.03803382]
[1771122095533,8.67110231,88.014,87.96,2.4115197]
[1771122095534,357.95110231,88.014,87.968,9.03803382]
[1771122096229,8.67110231,88.013,87.968,9.03803382]
[1771122096736,8.67110231,88.013,87.96,2.4115197]
[1771122097339,8.67110231,88.013,87.961,9.03803382]
[1771122098137,8.67110231,88.004,87.95,2.4115197]
[1771122098334,349.28,88.014,87.948,9.03803382]
[1771122098335,8.67110231,87.999,87.948,9.03803382]
[1771122099734,8.67110231,87.985,87.948,9.03803382]
[1771122105739,8.67110231,87.985,87.913,20.96843962]
[1771122105740,8.67110231,87.985,87.914,8.54276137]
[1771122105944,9.24222851,87.963,87.914,8.54276137]
[1771122106946,9.24222851,87.959,87.914,8.54276137]
[1771122107842,19.48002851,87.958,87.914,8.54276137]
[1771122108046,9.24222851,87.957,87.914,8.54276137]
[1771122108941,7.28221407,87.927,87.877,20.96843962]
[1771122109147,2.4115197,87.92,87.878,8.54276137]
[1771122109347,7.29979311,87.919,87.878,8.54276137]
[1771122109641,7.29658858,87.899,87.841,8.54276137]
[1771122110048,9.70810828,87.89,87.841,8.54276137]
[1771122110747,2.4115197,87.9,87.841,8.54276137]
[1771122111540,7.30420698,87.896,87.841,8.54276137]
[1771122112546,7.52625998,87.889,87.831,8.54276137]
[1771122113446,7.54026488,87.885,87.831,8.54276137]
[1771122114147,1.98038396,87.944,87.803,8.54276137]
[1771122114148,7.54026488,87.859,87.803,8.54276137]
[1771122115650,7.54026488,87.859,87.771,20.96843962]
[1771122115848,159.3803,87.889,87.759,56.6703751]
[1771122116143,2.4115197,87.83,87.771,56.6703751]
[1771122116444,265.3,87.836,87.78,59.08708536]
[1771122116853,265.3,87.836,87.78,56.67556566]
[1771122117238,265.3,87.836,87.75,6.05363192]
[1771122117440,10.2553,87.808,87.731,56.67556566]
[1771122117650,6.05363192,87.81,87.731,56.67556566]
[1771122118444,10.2567,87.796,87.731,56.67556566]
[1771122118846,90.6,87.817,87.731,56.67556566]
[1771122119041,90.6,87.817,87.73,6.05363192]
[1771122119042,90.6,87.817,87.737,57.016379]
[1771122119247,10.2536,87.822,87.737,57.016379]
[1771122119652,90.58,87.829,87.737,57.016379]
[1771122119851,90.58,87.829,87.74,57.02571873]
[1771122120248,451.92589632,87.86,87.765,57.02571873]
[1771122120550,451.92589632,87.86,87.771,56.91993463]
[1771122120551,445.8722644,87.86,87.771,56.91993463]
[1771122120857,445.8722644,87.86,87.773,56.91993463]
[1771122121154,796.6722644,87.86,87.773,56.91993463]
[1771122121553,796.6722644,87.86,87.781,56.56716718]
[1771122125447,796.6722644,87.86,87.782,10.2582]
[1771122126151,796.6722644,87.86,87.783,55.64102925]
[1771122127157,796.6722644,87.86,87.737,55.64425921]
[1771122127158,6.05363192,87.82,87.737,55.64425921]
[1771122127353,90.6,87.819,87.737,55.64425921]
[1771122127553,90.6,87.823,87.75,10.262]
[1771122127753,90.6,87.823,87.751,55.64425921]
[1771122128956,6.05363192,87.85,87.751,55.64425921]
[1771122129157,6.05363192,87.83,87.751,55.64425921]
[1771122130555,10.2543,87.816,87.751,55.64425921]
[1771122131355,231.16,87.815,87.751,55.64425921]
[1771122131554,10.2543,87.816,87.751,55.64425921]
[1771122131755,90.6,87.815,87.751,55.64425921]
[1771122132260,10.2543,87.816,87.751,55.64425921]
[1771122133059,10.2549,87.811,87.751,55.64425921]
[1771122133260,90.6,87.815,87.751,55.64425921]
[1771122133658,90.6,87.815,87.703,159.7164]
[1771122133659,90.6,87.815,87.695,55.56719124]
[1771122133959,6.05363192,87.79,87.707,55.56719124]
[1771122134158,10.2575,87.789,87.707,55.56719124]
[1771122134358,90.6,87.788,87.707,55.56719124]
[1771122134671,90.6,87.787,87.71,55.6488103]
[1771122134857,90.62,87.789,87.71,61.70244222]
[1771122135365,90.6,87.791,87.71,55.6488103]
[1771122135562,90.6,87.8,87.71,55.6488103]
[1771122136064,10.2558,87.803,87.713,55.6488103]
[1771122136267,100.8558,87.803,87.713,55.6488103]
[1771122136766,100.8558,87.803,87.721,55.52985098]
[1771122138262,100.8758,87.803,87.721,55.52985098]
[1771122138872,6.05363192,87.83,87.721,55.52985098]
[1771122138873,10.257,87.793,87.721,55.52985098]
[1771122142069,10.2583,87.782,87.721,55.52985098]
[1771122142470,100.8783,87.782,87.721,55.52985098]
[1771122145074,6.05363192,87.81,87.721,55.52985098]
[1771122145075,10.2571,87.793,87.721,55.52985098]
[1771122145270,6.05363192,87.81,87.721,55.52985098]
[1771122145476,90.62,87.809,87.721,55.52985098]
[1771122145775,10.2558,87.804,87.725,55.67288479]
[1771122146876,10.2546,87.814,87.735,55.67157382]
[1771122147880,10.2546,87.814,87.742,55.67157382]
[1771122148074,10.2529,87.828,87.742,55.67157382]
[1771122148273,10.2529,87.828,87.757,55.67157382]
[1771122148878,10.2529,87.828,87.74,6.05363192]
[1771122148879,10.2516,87.84,87.771,55.67886404]
[1771122149475,10.2503,87.85,87.773,55.67886404]
[1771122149879,354.14,87.859,87.773,55.67886404]
[1771122150081,10.2515,87.841,87.773,55.67886404]
[1771122150479,34.09,87.859,87.773,55.67886404]
[1771122150676,6.05363192,87.85,87.757,55.64954235]
[1771122150984,34.09,87.849,87.757,55.64954235]
[1771122151184,34.09,87.847,87.757,55.64954235]
[1771122152190,10.2556,87.806,87.757,55.64954235]
[1771122152397,34.09,87.829,87.757,55.64954235]
[1771122152589,34.09,87.827,87.757,55.64954235]
[1771122153788,10.2554,87.807,87.757,55.64954235]
[1771122156796,10.2565,87.798,87.757,55.64954235]
[1771122157390,10.2553,87.808,87.757,55.64954235]
[1771122159400,195.1,87.811,87.757,55.64954235]
[1771122159401,10.2564,87.799,87.757,55.64954235]
[1771122160289,34.09,87.81,87.731,55.65269162]
[1771122160485,34.09,87.808,87.731,55.65269162]
[1771122160686,177.2,87.807,87.731,55.65269162]
[1771122161287,191.6,87.806,87.731,55.65269162]
[1771122161596,6.05805691,87.82,87.731,55.65269162]
[1771122161597,203.16,87.805,87.731,55.65269162]
[1771122161797,10.2572,87.792,87.731,55.65269162]
[1771122167696,10.2561,87.801,87.736,55.70831285]
[1771122168700,10.2561,87.801,87.738,10.2633]
[1771122169010,10.2561,87.801,87.739,55.78144858]
[1771122169304,10.2549,87.811,87.741,55.78144858]
[1771122169495,34.09,87.834,87.741,55.78144858]
[1771122169496,8.30544418,87.834,87.752,10.2618]
[1771122169697,34.09,87.844,87.74,6.05805691]
[1771122169698,10.2536,87.823,87.753,55.78144858]
[1771122169899,124.86,87.833,87.753,55.78144858]
[1771122170095,8.3051495,87.832,87.753,55.78144858]
[1771122171507,354.36,87.831,87.753,55.78144858]
[1771122171699,10.2559,87.803,87.753,55.78144858]
[1771122182210,10.2549,87.812,87.755,10.2614]
[1771122182514,10.2549,87.812,87.756,55.75438075]
[1771122185219,10.2535,87.823,87.762,55.77284847]
[1771122186119,10.2545,87.815,87.762,55.77284847]
[1771122191526,10.2535,87.824,87.762,55.77284847]
[1771122192616,10.2524,87.833,87.766,55.79740827]
[1771122192820,355.08,87.838,87.766,55.79740827]
[1771122193026,34.09,87.853,87.766,55.79740827]
[1771122193227,354.98,87.852,87.766,55.79740827]
[1771122193418,8.27429834,87.851,87.766,55.79740827]
[1771122194816,10.2533,87.825,87.766,66.05750827]
[1771122195017,307.74,87.836,87.766,66.05750827]
[1771122195215,307.74,87.836,87.766,87.24752294]
[1771122195420,307.74,87.836,87.767,55.80098032]
[1771122195617,10.2532,87.826,87.767,55.80098032]
[1771122196125,34.09,87.859,87.77,55.80098032]
[1771122196324,34.09,87.883,87.791,55.80098032]
[1771122196528,34.09,87.883,87.78,6.05805691]
[1771122196529,356.04,87.871,87.794,55.79894519]
[1771122196732,356.04,87.871,87.799,55.79894519]
[1771122197026,10.2492,87.861,87.81,58.21897371]
[1771122198018,10.2494,87.858,87.81,58.21897371]
[1771122198928,10.2504,87.85,87.81,58.21897371]
[1771122199128,10.2504,87.85,87.81,55.79894519]
[1771122200424,456.1215644,87.86,87.81,55.79894519]
[1771122200626,456.1215644,87.86,87.81,58.21897371]
[1771122202829,360.48,87.859,87.81,58.21897371]
[1771122203130,360.48,87.859,87.821,55.67576463]
[1771122203330,361.3,87.859,87.821,55.67576463]
[1771122203831,445.8722644,87.86,87.821,55.67576463]
[1771122205533,362.2,87.863,87.831,55.67116123]
[1771122205731,362.2,87.863,87.82,2.42002852]
[1771122205923,362.2,87.863,87.82,58.09118975]
[1771122206126,364.48,87.865,87.82,55.67116123]
[1771122207636,10.2475,87.875,87.82,58.09118975]
[1771122207831,363.24,87.864,87.82,58.09118975]
[1771122208230,2.42002852,87.88,87.82,58.09118975]
[1771122208535,361.06,87.879,87.82,58.09118975]
[1771122208734,10.2486,87.866,87.82,58.09118975]
[1771122212729,10.2495,87.857,87.82,55.67116123]
[1771122212936,2.42026419,87.86,87.805,55.65477097]
[1771122213137,34.09,87.878,87.805,55.65477097]
[1771122213339,10.2519,87.837,87.793,55.65477097]
[1771122214646,10.2519,87.837,87.801,55.67209075]
[1771122221544,10.2529,87.829,87.788,55.68519187]
[1771122223850,10.2537,87.822,87.788,55.68519187]
[1771122224747,10.2526,87.831,87.788,55.68519187]
[1771122224948,10.2526,87.831,87.791,55.73320868]
[1771122225646,10.2515,87.84,87.801,55.73320868]
[1771122226047,2.42026419,87.87,87.811,55.73320868]
[1771122226350,118.6,87.869,87.811,55.73320868]
[1771122227049,10.2512,87.843,87.811,55.73320868]
[1771122227757,10.2501,87.852,87.811,55.73320868]
[1771122232753,10.251,87.845,87.811,55.73320868]
[1771122240355,10.25,87.854,87.811,55.73320868]
[1771122240556,2.42026419,87.88,87.821,55.7977633]
[1771122240862,366.48,87.879,87.821,55.7977633]
[1771122241763,10.2489,87.862,87.821,55.7977633]
[1771122242458,2.42026419,87.89,87.831,55.7977633]
[1771122242658,8.26565279,87.899,87.778,34.09]
[1771122242659,302.0,87.888,87.841,55.77056155]
[1771122243459,367.32,87.89,87.841,55.77056155]
[1771122243861,369.74026419,87.89,87.841,55.77056155]
[1771122244563,2.42026419,87.87,87.81,2.42026419]
[1771122246260,10.249,87.862,87.81,2.42026419]
[1771122246659,10.249,87.862,87.811,46.61857924]
[1771122248167,10.249,87.862,87.821,46.61857924]
[1771122249063,10.2501,87.853,87.821,46.61857924]
[1771122253669,10.2501,87.853,87.81,2.42026419]
[1771122253972,10.2501,87.853,87.81,49.07188168]
[1771122257570,10.2509,87.845,87.81,46.65161749]
[1771122259378,10.2498,87.855,87.821,46.62360551]
[1771122262376,10.2506,87.848,87.821,46.62360551]
[1771122262580,374.54,87.857,87.8,2.42026419]
[1771122263278,10.2515,87.841,87.8,2.42026419]
[1771122264276,10.2524,87.833,87.79,21.1610365]
[1771122264481,10.2524,87.833,87.8,2.42026419]
[1771122264678,10.2524,87.833,87.797,37.4921427]
[1771122270580,100.9511,87.844,87.797,37.4921427]
[1771122270780,100.9511,87.844,87.801,37.48914226]
[1771122271175,10.2511,87.844,87.801,37.48914226]
[1771122273272,10.2511,87.844,87.789,37.49032041]
[1771122273576,2.42059653,87.84,87.789,37.49032041]
[1771122273776,10.2511,87.844,87.79,39.91091694]
[1771122275680,90.72,87.849,87.79,39.91091694]
[1771122275681,90.72,87.849,87.8,2.42059653]
[1771122275882,90.72,87.849,87.801,37.45318886]
[1771122279479,10.2506,87.848,87.801,37.45318886]
[1771122282194,10.2516,87.84,87.801,37.45318886]
[1771122290589,90.72,87.849,87.801,37.45318886]
[1771122291888,2.42059653,87.87,87.801,37.45318886]
[1771122292087,2.42059653,87.87,87.811,37.47230589]
[1771122292495,10.2491,87.861,87.811,37.47230589]
[1771122293590,2.42059653,87.87,87.813,37.44527482]
[1771122293789,10.2478,87.872,87.821,37.44527482]
[1771122299995,2.42059653,87.88,87.821,37.44527482]
[1771122300200,10.2467,87.881,87.831,37.43432679]
[1771122300601,374.46,87.883,87.831,37.43432679]
[1771122301997,433.36648552,87.9,87.841,37.4347208]
[1771122302199,374.84,87.887,87.841,37.4347208]
[1771122302499,2.42059653,87.86,87.8,2.42059653]
[1771122302704,2.42059653,87.86,87.801,37.40066072]
[1771122302904,2.42059653,87.85,87.801,37.40066072]
[1771122303100,375.22,87.849,87.801,37.40066072]
[1771122303299,375.28,87.848,87.801,37.40066072]
[1771122303802,2.42059653,87.84,87.801,37.40066072]
[1771122304306,375.86,87.84,87.801,37.40066072]